Cogmind - Beta 14 @@@ ROGUE MODE // 2025.03.23 @ 21:55:08 Player: SovietPaperclip Result: Self-destructed Performance ------------- Evolutions (2) 1000 Regions Visited (5) 1000 Robots Destroyed (40) 200 Value Destroyed (1181) 1181 Prototype IDs (1) 20 Alien Tech Used (0) 0 Bonus (0) 0 TOTAL SCORE: 3401 Bonus ------- None Cogmind --------- Core Integrity 432/550 Matter 140/300 Energy 100/100 System Corruption 0% Temperature Cool (0) Movement Core (500) Ox9 Location -8/Materials Parts ------- > --- POWER (1) -------- (None) > --- PROPULSION (4) --- (None) > --- UTILITY (4) ------ Improved Heat Sink Large Storage Unit > --- WEAPON (2) ------- Gauss Rifle Rocket Launcher > --- INVENTORY (15) --- Light Deuterium Engine Machine Analyzer Improved Sensor Array Improved Terrain Scan Processor System Shield High-powered Tractor Beam High-powered Tractor Beam Bomb Drone Bay (16/16) Heavy Assault Rifle Autogun High-powered Shotgun Gauss Rifle Rocket Launcher Rocket Launcher Peak State ------------ > --- POWER ------------ Light Deuterium Engine > --- PROPULSION ------- Light Treads Light Treads Improved Treads > --- UTILITY ---------- Large Storage Unit Bomb Drone Bay > --- WEAPON ----------- Particle Cannon Autogun > --- INVENTORY -------- Light Deuterium Engine Light Treads Improved Heat Sink Machine Analyzer Improved Terrain Scan Processor Light Armor Plating High-powered Tractor Beam High-powered Tractor Beam Heavy Assault Rifle Rocket Launcher Rocket Launcher Rocket Launcher [Rating: 28] Favorites ----------- Power Light Deuterium Engine Engine Light Deuterium Engine Propulsion Light Treads Treads Light Treads Utility Improved Heat Sink Device Improved Heat Sink Storage Small Storage Unit Protection Light Armor Plating Weapon Assault Rifle Energy Gun Small Laser Energy Cannon Particle Cannon Ballistic Gun Assault Rifle Launcher Grenade Launcher Build | -11 -10 -10 -9 -9 -8 ------- Run | Yrd Mat Min Mat Min Mat Slots Evolved 4 | . . . 2 . 2 Power . | . . . . . . Propulsion 2 | . . . 1 . 1 Utility 2 | . . . 1 . 1 Weapon . | . . . . . . Parts Attached 24 | 6 . . 11 3 4 Power 2 | 1 . . 1 . . Engine 2 | 1 . . 1 . . Core . | . . . . . . Reactor . | . . . . . . Propulsion 6 | 2 . . 3 . 1 Treads 6 | 2 . . 3 . 1 Leg . | . . . . . . Wheel . | . . . . . . Hover . | . . . . . . Flight . | . . . . . . Utility 8 | 1 . . 4 3 . Device 4 | . . . 2 2 . Storage 2 | 1 . . 1 . . Processor . | . . . . . . Hackware . | . . . . . . Protection 2 | . . . 1 1 . Artifact . | . . . . . . Weapon 8 | 2 . . 3 . 3 Energy Gun 1 | 1 . . . . . Energy Cannon 1 | . . . 1 . . Ballistic Gun 4 | 1 . . 1 . 2 Ballistic Cannon . | . . . . . . Launcher 2 | . . . 1 . 1 Special Weapon . | . . . . . . Impact Weapon . | . . . . . . Slashing Weapon . | . . . . . . Piercing Weapon . | . . . . . . Special Melee Weapon . | . . . . . . Unidentified Prototypes 1 | . . . . 1 . Parts Lost 8 | . . . 2 . 6 Power 2 | . . . 1 . 1 Propulsion 5 | . . . 1 . 4 Utility 1 | . . . . . 1 Weapon . | . . . . . . Highest Loss Streak 3 | . . . 1 . 3 To Critical Strikes . | . . . . . . Average Slot Usage (%) 87 | . 85 85 86 100 82 Engine 9 | . 14 14 10 11 7 Treads 28 | . 28 28 25 33 32 Device 13 | . . . 15 11 9 Storage 10 | . 14 14 11 11 9 Protection 3 | . . . 1 11 6 Energy Gun 3 | . 14 14 5 . . Energy Cannon 4 | . . . 4 11 2 Ballistic Gun 11 | . 14 14 11 11 14 Launcher 1 | . . . 1 . . Peak Build Rating 28 | 6 6 6 18 28 24 Average Rating 14 | 4 6 6 11 18 21 On Entrance 9 | . 6 6 6 18 19 Naked Turns . | . . . . . . Heaviest Build 36 | 11 11 11 36 36 36 Greatest Support 83 | 40 40 40 63 63 83 Greatest Overweight (x) . | . . . . . . Average Overweight (x) . | . . . . . . Largest Inventory Capacity 15 | 8 8 8 15 15 15 Average Capacity 11 | 7 8 8 9 15 15 Most Carried 15 | . 1 1 11 14 15 Average Carried 7 | . . 1 5 10 13 Final Capacity 15 | 8 8 8 15 15 15 Final Carried 15 | . 1 1 10 12 15 Class Distribution -------------------- 57% | Mutant 42% | Scavenger-Mutant Dominant Class ---------------- Mutant | -10/Materials Mutant | -10/Mines Mutant | -9/Materials Scavenger-Mutant | -9/Mines Scavenger-Mutant | -8/Materials Resources | -11 -10 -10 -9 -9 -8 ----------- Run | Yrd Mat Min Mat Min Mat Matter Collected 836 | 194 . . 388 4 250 Remotely . | . . . . . . Salvage Created 1279 | 26 . . 671 . 582 Parts 75 | . . . 49 . 26 Haulers Intercepted 2 | . . . 1 . 1 Recyclers Shooed 1 | . . . 1 . . Parts Field Recycled . | . . . . . . Retrieved Matter . | . . . . . . Parts Self-Destructed . | . . . . . . Prevented . | . . . . . . Kills | -11 -10 -10 -9 -9 -8 ------- Run | Yrd Mat Min Mat Min Mat Combat Hostiles Destroyed 33 | . . . 20 . 13 Guns 16 | . . . 6 . 10 Cannons 12 | . . . 11 . 1 AOE 5 | . . . 3 . 2 Classes Destroyed 11 | 1 . . 8 . 2 Worker 1 | . . . 1 . . Tunneler 1 | 1 . . . . . Hauler 2 | . . . 1 . 1 Mechanic 1 | . . . 1 . . Watcher 2 | . . . 1 . 1 Swarmer 10 | . . . 10 . . Grunt 17 | . . . 8 . 9 Brawler 2 | . . . 1 . 1 Duelist 1 | . . . . . 1 Sentry 1 | . . . 1 . . Hunter 2 | . . . . . 2 Best Kill Streak 11 | 1 . . 11 . 4 Combat Bots Only 11 | . . . 11 . 4 Max Kills in Single Turn 3 | 1 . . 3 . 1 Gunslinging . | . . . . . . Exploded 3 | . . . 3 . 1 Melee . | . . . . . . Uniques/NPCs Destroyed . | . . . . . . Combat | -11 -10 -10 -9 -9 -8 -------- Run | Yrd Mat Min Mat Min Mat Hostile Shots Fired 164 | . . 3 99 . 62 Missed 46 | . . 3 26 . 17 Damage Taken 1711 | . . . 907 . 804 Core 232 | . . . 114 . 118 Absorbed by Shields . | . . . . . . Core Remaining (%) 90 | 100 . 100 . 71 . Volleys Fired 117 | 1 . . 65 1 50 Largest 2 | 2 . . 2 2 2 Hottest 91 | 60 . . 91 91 91 Shots Fired 210 | 2 . . 121 2 85 Gun 160 | 2 . . 81 1 76 Cannon 42 | . . . 38 1 3 Launcher 8 | . . . 2 . 6 Special . | . . . . . . Kinetic 134 | 1 . . 56 1 76 Thermal 68 | 1 . . 63 1 3 Explosive 8 | . . . 2 . 6 Electromagnetic . | . . . . . . Robot Hit Streak 17 | 2 . . 9 . 17 Robot Miss Streak 6 | . . . 5 . 6 Penetration Max 1 | . . . . . 1 Secondary Targets 2 | . . . . . 2 Max Gunslinging Chain 1 | . . . . . 1 Shots Hit Robots 127 | 2 . . 74 . 51 Core Hits 70 | 1 . . 34 . 35 Critical Kills 1 | . . . . . 1 Critical Parts Destroyed 2 | . . . . . 2 Critical Strikes 3 | . . . . . 3 Destroy 3 | . . . . . 3 Melee Attacks . | . . . . . . Impact . | . . . . . . Slashing . | . . . . . . Piercing . | . . . . . . Sneak Attacks . | . . . . . . Combat Hostiles . | . . . . . . Follow-up Attacks . | . . . . . . Damage Inflicted 3028 | 21 . . 1482 . 1525 Guns 1763 | 21 . . 699 . 1043 Cannons 554 | . . . 514 . 40 Explosions 711 | . . . 269 . 442 Melee . | . . . . . . Ramming . | . . . . . . Kinetic 1567 | 11 . . 513 . 1043 Thermal 750 | 10 . . 700 . 40 Explosive 711 | . . . 269 . 442 Electromagnetic . | . . . . . . Impact . | . . . . . . Slashing . | . . . . . . Piercing . | . . . . . . Highest Corruption . | . . . . . . Average Corruption . | . . . . . . Corruption Purged . | . . . . . . Corruption Blocked . | . . . . . . Overload Shots . | . . . . . . Overflow Damage 4 | . . . 4 . . Projectiles . | . . . . . . Explosions 4 | . . . 4 . . Melee . | . . . . . . Knockbacks . | . . . . . . Impact . | . . . . . . Kinetic . | . . . . . . Secondary . | . . . . . . Self-Inflicted Damage 85 | . . . 85 . . Shots 2 | . . . 2 . . Rammed . | . . . . . . Targets Rammed . | . . . . . . Kicked . | . . . . . . Crushed . | . . . . . . Highest Temperature 72 | . . . 72 24 18 Average Temperature 15 | . . . 15 18 12 Received Heat Transfer 648 | . . . 333 . 315 Siege Activations . | . . . . . . Robots Corrupted . | . . . . . . Combat Hostiles . | . . . . . . Parts Fried . | . . . . . . Impact Corruptions . | . . . . . . Robots Melted . | . . . . . . Combat Hostiles . | . . . . . . Parts Melted 1 | . . . 1 . . Heat Transferred 1449 | 25 . . 1350 . 74 Parts Sabotaged . | . . . . . . Parts Stolen . | . . . . . . Parts Stripped . | . . . . . . Power Chain Reactions . | . . . . . . Alert | -11 -10 -10 -9 -9 -8 ------- Run | Yrd Mat Min Mat Min Mat Peak Influence 372 | 5 3 15 372 60 314 Initial 60 | . 3 . 5 60 23 Average 95 | . 3 4 103 60 119 Maximum Alert Level 1 | . . . 1 . 1 Low Security (%) 86 | 100 100 100 84 100 76 Level 1 13 | . . . 15 . 23 Level 2 . | . . . . . . Level 3 . | . . . . . . Level 4 . | . . . . . . Level 5 . | . . . . . . High Security . | . . . . . . Max Security . | . . . . . . Squads Dispatched 9 | . . . 2 . 7 Investigation 2 | . . . 1 . 1 Extermination . | . . . . . . Reinforcement 4 | . . . 1 . 3 Assault . | . . . . . . Garrison 3 | . . . . . 3 Intercept . | . . . . . . Searches Triggered . | . . . . . . Construction Impeded 1 | . . . . . 1 Haulers Reinforced . | . . . . . . Active Scanning Responses . | . . . . . . Cargo Convoy Interrupts . | . . . . . . Stealth | -11 -10 -10 -9 -9 -8 --------- Run | Yrd Mat Min Mat Min Mat Distress Signals 10 | . . . 3 . 7 Communications Jammed . | . . . . . . Distress Signals . | . . . . . . Times Spotted 57 | . . 2 29 . 26 Peak Tracking Total 6 | . . 2 5 . 6 Tactical Retreats 4 | . . . 1 . 3 Traps | -11 -10 -10 -9 -9 -8 ------- Run | Yrd Mat Min Mat Min Mat Traps Triggered 1 | . . . 1 . . Indirectly . | . . . . . . Trap Hack Attempts . | . . . . . . Triggered . | . . . . . . Disarmed . | . . . . . . Reprogrammed . | . . . . . . Reused . | . . . . . . Traps Extracted . | . . . . . . Installed . | . . . . . . Triggered . | . . . . . . Machines | -11 -10 -10 -9 -9 -8 ---------- Run | Yrd Mat Min Mat Min Mat Machines Disabled 2 | . . . 1 . 1 Max in Single Turn 1 | . . . 1 . 1 Machines Repaired . | . . . . . . Machines Dismantled . | . . . . . . Machines Sabotaged . | . . . . . . Overloaded Fab Kills . | . . . . . . Hacking | -11 -10 -10 -9 -9 -8 --------- Run | Yrd Mat Min Mat Min Mat Machines Accessed 10 | . . . 7 1 2 Terminals 9 | . . . 7 . 2 Fabricators . | . . . . . . Repair Stations . | . . . . . . Recycling Units . | . . . . . . Scanalyzers . | . . . . . . Garrison Access . | . . . . . . Total Hacks 26 | . . . 16 1 9 Successful 8 | . . . 3 1 4 Failed 18 | . . . 13 . 5 Catastrophic 4 | . . . 3 . 1 Database Lockouts . | . . . . . . Manual 11 | . . . 7 . 4 Terminals 25 | . . . 16 . 9 Fabricators . | . . . . . . Repair Stations . | . . . . . . Recycling Units . | . . . . . . Scanalyzers . | . . . . . . Garrison Access . | . . . . . . Terminal Hacks 7 | . . . 2 1 4 Part Schematic 1 | . . . . . 1 Open Door 1 | . . . . 1 . Alert Level 1 | . . . . . 1 Unreport Threat 2 | . . . 1 . 1 Recall Investigation 1 | . . . 1 . . Hauler Manifests 1 | . . . . . 1 Fabricator Hacks . | . . . . . . Repair Station Hacks . | . . . . . . Recycling Unit Hacks . | . . . . . . Scanalyzer . | . . . . . . Garrison Access Hacks . | . . . . . . Unauthorized Hacks 1 | . . . 1 . . Terminals 1 | . . . 1 . . Botnet 1 | . . . 1 . . Fabricators . | . . . . . . Repair Stations . | . . . . . . Recycling Units . | . . . . . . Scanalyzers . | . . . . . . Garrison Access . | . . . . . . Data Cores Recovered . | . . . . . . Used . | . . . . . . Hacking Detections 8 | . . . 6 . 2 Full Trace Events 1 | . . . . . 1 Feedback Events . | . . . . . . Feedback Blocked . | . . . . . . Robot Schematics Acquired . | . . . . . . Robots Built . | . . . . . . Authchips . | . . . . . . Time . | . . . . . . Total Robot Build Rating . | . . . . . . Part Schematics Acquired 1 | . . . . . 1 Parts Built . | . . . . . . Authchips . | . . . . . . Time . | . . . . . . Total Part Build Rating . | . . . . . . Parts Repaired . | . . . . . . Time . | . . . . . . Parts Recycled . | . . . . . . Recycled Matter . | . . . . . . Retrieved Matter . | . . . . . . Retrieved Components . | . . . . . . Parts Scanalyzed . | . . . . . . Part Schematics Acquired . | . . . . . . Parts Damaged . | . . . . . . Bothacking | -11 -10 -10 -9 -9 -8 ------------ Run | Yrd Mat Min Mat Min Mat Used RIF Installer . | . . . . . . Robots Hacked . | . . . . . . Non-combat . | . . . . . . Combat . | . . . . . . Robot Hacks Applied . | . . . . . . Relay Couplers Released . | . . . . . . Fabnet Peak Effective % . | . . . . . . Robots Rewired . | . . . . . . Allies Hacked . | . . . . . . Hacks Repelled . | . . . . . . Allies | -11 -10 -10 -9 -9 -8 -------- Run | Yrd Mat Min Mat Min Mat Total Allies . | . . . . . . Largest Group . | . . . . . . Highest-Rated Group . | . . . . . . Highest-Rated Ally . | . . . . . . Total Orders . | . . . . . . Ally Attacks . | . . . . . . Total Damage . | . . . . . . Kills . | . . . . . . Allies Corrupted . | . . . . . . Allies Melted . | . . . . . . Intel | -11 -10 -10 -9 -9 -8 ------- Run | Yrd Mat Min Mat Min Mat Robot Analysis Total . | . . . . . . Derelict Logs Recovered 1 | . . . . 1 . Drone Launches . | . . . . . . Drone Recoveries . | . . . . . . Exploration | -11 -10 -10 -9 -9 -8 ------------- Run | Yrd Mat Min Mat Min Mat Turns Passed 2171 | 58 37 10 1285 326 455 Spaces Moved 910 | 31 23 7 500 189 160 Core 2 | 2 . . . . . Treads 908 | 29 23 7 500 189 160 Legs . | . . . . . . Wheels . | . . . . . . Hover . | . . . . . . Flight . | . . . . . . Fastest Speed 50 | 50 160 160 160 160 160 Average Speed 159 | 152 160 160 160 160 160 Slowest Speed 160 | 160 160 160 160 160 160 Overloaded Moves . | . . . . . . Propulsion Burnouts . | . . . . . . Robots Hopped . | . . . . . . Cave-ins Triggered . | . . . . . . Exploration Rate (%) 21 | 3 6 8 46 45 22 Regions Visited 5 Branch Regions 2 Pre-discovered Areas . | . . . . . . Known Exits Taken . | . . . . . . Unknown Exits Taken 5 | 1 1 1 1 1 . Scrap Searched 1 | . . . . 1 . Spaces Dug 9 | . . . 1 . 8 Terrain Destroyed 48 | . . . 4 . 44 Melee . | . . . . . . Projectile . | . . . . . . AOE 48 | . . . 4 . 44 Terrain Rammed . | . . . . . . Walls Destroyed . | . . . . . . Machines Disabled . | . . . . . . Actions | -11 -10 -10 -9 -9 -8 --------- Run | Yrd Mat Min Mat Min Mat Total 1423 | 37 23 6 871 213 273 Wait 343 | . . . 275 15 53 Move 905 | 30 22 6 499 188 160 Hop . | . . . . . . Pick Up 22 | . 1 . 14 2 5 Fast Attach 10 | 6 . . 4 . . Attach 6 | . . . 2 3 1 Detach 3 | . . . . 3 . Swap 8 | . . . 5 . 3 Drop 9 | . . . 7 1 1 Fire 117 | 1 . . 65 1 50 Melee . | . . . . . . Ram . | . . . . . . Kick . | . . . . . . Crush . | . . . . . . Escape Stasis . | . . . . . . Rewire . | . . . . . . Trap . | . . . . . . Miscellaneous . | . . . . . . Route ------- -11/Scrapyard -10/Materials -10/Mines -9/Materials -9/Mines -8/Materials History --------- Turn | Location | Event 35 | -11/Scrapyard | Discovered new exit (range 12) 59 | -11/Scrapyard | Entered Materials 59 | -10/Materials | Discovered new exit (range 8) 96 | -10/Materials | Entered Mines 103 | -10/Mines | Discovered new exit (range 3) 106 | -10/Mines | Entered Materials 106 | -9/Materials | Evolved 2 slots: Propulsion x1, Utility x1 308 | -9/Materials | Build established: Mutant 952 | -9/Materials | Discovered new exit (range 16) 1193 | -9/Materials | Destroyed 11 combat bots 1391 | -9/Materials | Entered Mines 1398 | -9/Mines | Received a Rocket Launcher from a helpful Derelict 1463 | -9/Mines | A weapon hastily lodged in a ceiling crevice suddenly fell to the ground 1546 | -9/Mines | Build established: Scavenger-Mutant 1665 | -9/Mines | Discovered new exit (range 12) 1692 | -9/Mines | Found the Drone Emporium 1699 | -9/Mines | Found Prototype Device 1701 | -9/Mines | Identified Bomb Drone Bay 1717 | -9/Mines | Entered Materials 1717 | -8/Materials | Evolved 2 slots: Propulsion x1, Utility x1 1923 | -8/Materials | Garrison activated, responded to threat 2172 | -8/Materials | Self-destructed Last Messages --------------- 02125_ Penetrated by Slug. 02125_ R-06 Scavenger collects Aluminum Leg. 02127_ Slug penetrates H-55 Commando. 02128_ Lgt. Treads destroyed. 02128_ M-13 Machinist repairs Lgt. Ion Engine. 02130_ Slug penetrates Wall. 02133_ H-55 Commando destroyed. 02133_ Slug penetrates Wall. 02142_ Acquired Gauss Rifle. 02147_ W-25 Informer sends out distress signal. 02149_ Slug penetrates Wall. 02155_ Lgt. Treads destroyed. 02155_ A-02 Transporter destroyed. 02160_ W-25 Informer destroyed. 02160_ Lgt. Treads destroyed. 02162_ G-47 Trooper destroyed. 02162_ W-25 Informer sends out distress signal. 02168_ G-47 Trooper destroyed. 02170_ Critical hit (Burn: +37). 02172_ The unstable cave ceiling collapses. Map ----- +----------------------------------------------------+ | ???????????????######## ####### #??????????? | | ???????????????# # ######## #???????????? | | ???????????????# """ # # # #???????????? | | ???????????????# """ + + ! # #???????????? | | ???????????????#[ """ # # = !! # ###?????????? | | ???????????????# # # !! # ??????????? | | ???????????????# ?# # # ??????????? | | ???????????????######?# # ! # ???????????? | | ????????????########### ######## #???????????? | | ????????????# # #??????# ###########?? | | ????????????# + #??????# =# #?? | | ????????????# # #??????# %+% #?? | | ????????????# # #??????# #* #?? | | ????????????########### ######## # % #?? | | ?#/################### ######+####?? | | # ########+#####?# #????? | | # % T #??# #?# #????? | | + #??# #?# #????? | | # ############+##### #??# #?# #????? | | ????# ########??#= #?# #????? | | ????# ########?# #?# #????? | | ????+ """ # #==!!!!#?# """ """ #?# #????? | | ????#? S" # #==!!!!#?# """ """ #?# #????? | | ????? ! # ##? #?# """ """ #?# #????? | | ?????#####?# """ #??# #############?# #????? | | ???????????# """ ##??#@ ! ############# ###### | | ???????????# """ #???# a % | | ???????????# #??? !]] m############### | | ???????????##########??? ][]= #?????????????? | | ??????????????????????? ]= ####?????????????? | | ???????????????????????# %# #????????????????? | | ??????????????????????? wg ##????????????????? | | ???????????????????????# ?????????????????? | | ??????????????????????? ????????????????? | | ??????????????????????? ???????????????? | | ??????????????????????? ??????????????? | | ???????????????????????### ?????????????? | | ?????????????????????????? # #??????????????? | | ?????????????????????????? ????????????????? | | ?????????????????????????? #???????????????????? | | ??????????????????????????##?????????????????????? | | ?????????????????????????????????????????????????? | | ?????????????????????????????????????????????????? | | ?????????????????????????????????????????????????? | | ?????????????????????????????????????????????????? | | ?????????????????????????????????????????????????? | | ?????????????????????????????????????????????????? | | ?????????????????????????????????????????????????? | | ?????????????????????????????????????????????????? | | ?????????????????????????????????????????????????? | +----------------------------------------------------+ Best States ------------- Heat Dissipation 45 Energy Generation 14 Energy Capacity 140 Matter Stores 300 Matter Capacity 300 Sight Range 16 Terrain Scan Density 10 Armor Coverage 150 Evasion (%) 40 Recoil Reduction 4 Item Schematics ----------------- Cargo Storage Unit | -8/Materials | Hacked Robot Schematics ------------------ None Fabricated ------------ Nothing Alien Tech Used ----------------- None Achievements -------------- None Challenges ------------ None Game ------ Seed PiercingDisposableGravjet Manual? 0 Play Time 00:19:41 Cumulative 146.2 hours Start 2025.03.23 @ 21:39:54 End 2025.03.23 @ 21:55:08 Sessions 1 Manual Loads 0 Difficulty Rogue Special Mode None Game No. 211 Rogue 211 Adventurer 0 Explorer 0 Win Type - Total 1 Types 1/0/0/0/0/0/0/0/0 Lore% 50 Gallery% 55 Achievement% 53 Wizard Run 0 Options --------- Layout 1 ASCII 0 Keyboard 0 Movement Mouse Keybinds 0 Fullscreen 2 Font 32/Smallcaps Map View 50x40 Zoom Use 0% Tactical HUD 1 Map Filters NONE Filters NONE Steam 1 RUN: 7ef6c259-15ab-4a73-bdda-8f2152094b35